[Event "Moscow-Open 2021_A"]
[Site "Moscow, Russia"]
[Date "2021.02.22"]
[Round "3.4"]
[White "Stupak, Kirill"]
[Black "Kavyev, Ruslan"]
[Result "1-0"]
[ECO "D71"]
[WhiteElo "2492"]
[BlackElo "2339"]
[Annotator "zimin"]
[PlyCount "103"]
[EventDate "2021.??.??"]
[TimeControl "90+30"]
[WhiteClock "0:01:51"]
[BlackClock "0:02:04"]

{[%evp 0,61,28,19,34,-12,35,-2,31,14,10,-18,21,-4,30,23,28,23,67,62,41,-2,52,
-5,27,-2,29,29,56,35,82,73,70,50,46,48,40,36,36,14,36,20,33,39,41,18,34,46,110,
23,63,58,59,51,95,107,107,104,114,67,52,45,43,46]} 1. d4 {[%emt 0:00:00]} Nf6 {
[%emt 0:00:00]} 2. c4 {[%emt 0:00:00]} g6 {[%emt 0:00:00]} 3. g3 {[%emt 0:00:
00]} c6 {[%emt 0:00:00]} 4. Bg2 {[%emt 0:00:00]} d5 {[%emt 0:00:00]} 5. Qa4 {
[%emt 0:00:00]} Nfd7 {[%emt 0:00:00]} 6. Qc2 {[%emt 0:00:00]} Nb6 {[%emt 0:00:
00]} 7. c5 {[%emt 0:00:00]} N6d7 {[%emt 0:00:00]} 8. Nf3 {[%emt 0:00:00]} Bg7 {
[%emt 0:00:00]} 9. O-O {[%emt 0:00:00]} O-O {[%emt 0:00:00]} 10. Nc3 {[%emt 0:
00:00]} Na6 {[%emt 0:00:00]} 11. Bf4 {[%emt 0:00:00]} Nc7 {[%emt 0:00:00]} 12.
b4 {[%emt 0:00:00]} Ne6 {[%emt 0:00:00]} 13. Be3 {[%emt 0:00:00]} f5 {[%emt 0:
00:00]} 14. Qc1 {[%emt 0:00:00]} Rf7 {[%emt 0:00:00]} 15. Rd1 {[%emt 0:00:00]}
Qf8 {[%emt 0:00:00]} 16. Bf4 {[%emt 0:00:00]} h6 {[%emt 0:00:00]} 17. h4 {
[%emt 0:00:00]} Nxf4 {[%emt 0:00:00]} 18. gxf4 {[%emt 0:00:00]} Bf6 {[%emt 0:
00:00]} 19. Kh2 {[%emt 0:00:00]} Rh7 {[%emt 0:00:00]} 20. Bh3 {[%emt 0:00:00]}
Qf7 {[%emt 0:00:42]} 21. Rg1 {[%emt 0:00:00]} Kh8 {[%emt 0:02:23]} 22. Na4 {
[%emt 0:00:00]} Nf8 {[%emt 0:00:52]} 23. Nb2 {[%emt 0:00:00]} Ne6 {[%emt 0:02:
55]} 24. Qe3 {[%emt 0:00:35]} g5 {[%emt 0:03:22]} 25. Bxf5 {[%emt 0:00:14]}
gxf4 {[%emt 0:00:21]} 26. Bxe6 {[%emt 0:08:46]} Bxe6 {[%emt 0:01:44]} 27. Qxf4
{[%emt 0:00:04]} Qh5 {[%emt 0:01:40]} 28. Nd3 {[%emt 0:00:53]} Rf7 {[%emt 0:00:
29]} 29. Nde5 {[%emt 0:04:26]} Bxe5 {[%emt 0:00:10]} 30. Qxe5+ {[%emt 0:00:06]}
Qxe5+ {[%emt 0:00:03]} 31. Nxe5 {[%emt 0:00:22]} Rxf2+ {[%emt 0:00:09]} 32. Rg2
{[%emt 0:00:01]} Rxg2+ {[%emt 0:00:31]} 33. Kxg2 {[%emt 0:00:01]} Bf5 {[%emt 0:
01:51]} 34. a4 {[%emt 0:00:34]} Be4+ {[%emt 0:00:34]} 35. Kf2 {[%emt 0:00:12]}
a6 {[%emt 0:00:26]} 36. Ke3 {[%emt 0:02:14]} Kg7 {[%emt 0:00:33]} 37. Ra2 {
[%emt 0:00:45]} Kf6 {[%emt 0:00:23]} 38. Rb2 {[%emt 0:00:00]} Ke6 {[%emt 0:00:
46]} 39. b5 {[%emt 0:00:10]} cxb5 {[%emt 0:00:32]} 40. axb5 {[%emt 0:00:01]} a5
{[%emt 0:00:07]} 41. b6 {[%emt 0:01:37]} a4 {[%emt 0:00:21]} 42. c6 {[%emt 0:
00:31]} a3 {[%emt 0:00:10]} 43. Ra2 {[%emt 0:00:46]} Bb1 {[%emt 0:01:15]} 44.
cxb7 {[%emt 0:00:36]} Rb8 {[%emt 0:00:05]} 45. Rxa3 {[%emt 0:00:05]} Rxb7 {
[%emt 0:00:05]} 46. Rb3 {[%emt 0:00:41]} Ba2 {[%emt 0:01:13]} 47. Rb2 {[%emt 0:
00:38]} Bc4 {[%emt 0:00:01]} 48. Nxc4 {[%emt 0:00:26]} dxc4 {[%emt 0:00:01]}
49. Kd2 {[%emt 0:00:01]} Kd5 {[%emt 0:00:30]} 50. Kc3 {[%emt 0:00:01]} e6 {
[%emt 0:00:36]} 51. Rb5+ {[%emt 0:00:49]} Kc6 {[%emt 0:00:06]} 52. Kxc4 {
[%emt 0:00:04] Kd5+} 1-0

[Event "Moscow-Open 2021_A"]
[Site "Moscow, Russia"]
[Date "2021.02.22"]
[Round "3.5"]
[White "Gubajdullin, Alexei"]
[Black "Faizrakhmanov, Ramil"]
[Result "0-1"]
[ECO "B12"]
[WhiteElo "2347"]
[BlackElo "2476"]
[Annotator "zimin"]
[PlyCount "90"]
[EventDate "2021.??.??"]
[TimeControl "90+30"]
[WhiteClock "0:06:32"]
[BlackClock "0:47:06"]

{[%evp 0,44,19,11,63,74,71,78,73,33,53,48,48,52,52,47,64,40,85,44,34,10,44,18,
18,1,21,21,4,7,4,3,6,-7,-4,-10,-5,1,19,-10,-17,-17,-26,-21,-16,-37,-39]} 1. e4
{[%emt 0:00:00]} c6 {[%emt 0:00:00]} 2. d4 {[%emt 0:00:00]} d5 {[%emt 0:00:00]}
3. e5 {[%emt 0:00:00]} Bf5 {[%emt 0:00:00]} 4. h4 {[%emt 0:00:00]} h5 {[%emt 0:
00:00]} 5. Bd3 {[%emt 0:00:00]} Bxd3 {[%emt 0:00:00]} 6. Qxd3 {[%emt 0:00:00]}
e6 {[%emt 0:00:00]} 7. Bg5 {[%emt 0:00:00]} Be7 {[%emt 0:00:00]} 8. Nf3 {
[%emt 0:00:00]} Nh6 {[%emt 0:00:00]} 9. Nbd2 {[%emt 0:00:00]} Nf5 {[%emt 0:00:
00]} 10. Nf1 {[%emt 0:00:00]} c5 {[%emt 0:00:00]} 11. dxc5 {[%emt 0:00:00]} Na6
{[%emt 0:00:00]} 12. Ne3 {[%emt 0:00:00]} Nxe3 {[%emt 0:00:00]} 13. Bxe3 {
[%emt 0:00:00]} Qa5+ {[%emt 0:00:00]} 14. c3 {[%emt 0:00:00]} Nxc5 {[%emt 0:00:
00]} 15. Bxc5 {[%emt 0:00:00]} Qxc5 {[%emt 0:00:00]} 16. Nd4 {[%emt 0:00:00]}
Rc8 {[%emt 0:00:00]} 17. Qg3 {[%emt 0:00:00]} g6 {[%emt 0:00:00]} 18. O-O-O {
[%emt 0:00:00]} b5 {[%emt 0:00:00]} 19. Kb1 {[%emt 0:00:00]} b4 {[%emt 0:00:00]
} 20. Rd3 {[%emt 0:00:00]} Qb6 {[%emt 0:00:00]} 21. cxb4 {[%emt 0:00:00]} Rc4 {
[%emt 0:00:00]} 22. Qe3 {[%emt 0:00:00]} Bxb4 {[%emt 0:00:00]} 23. Rhd1 {
[%emt 0:00:00]} Bc5 {[%emt 0:00:00]} 24. Rb3 {[%emt 0:00:00]} Qd8 {[%emt 0:00:
00]} 25. Rb7 {[%emt 0:00:00]} Qc8 {[%emt 0:00:00]} 26. Rb3 {[%emt 0:05:49]} O-O
{[%emt 0:00:00]} 27. g4 {[%emt 0:01:00]} Qd8 {[%emt 0:00:00]} 28. Rc3 {[%emt 0:
03:40]} Qxh4 {[%emt 0:00:00]} 29. b3 {[%emt 0:02:16]} Qxg4 {[%emt 0:00:00]} 30.
Rcd3 {[%emt 0:02:47]} Rxd4 {[%emt 0:00:00]} 31. Rxd4 {[%emt 0:00:10]} Qxd1+ {
[%emt 0:00:00]} 32. Rxd1 {[%emt 0:00:04]} Bxe3 {[%emt 0:00:00]} 33. fxe3 {
[%emt 0:00:05]} Kg7 {[%emt 0:00:00]} 34. Kc2 {[%emt 0:00:23]} g5 {[%emt 0:00:
00]} 35. Kd3 {[%emt 0:00:03]} Rc8 {[%emt 0:00:00]} 36. e4 {[%emt 0:00:25]}
dxe4+ {[%emt 0:00:00]} 37. Kxe4 {[%emt 0:00:01]} Rc2 {[%emt 0:00:00]} 38. a4 {
[%emt 0:00:08]} Re2+ {[%emt 0:00:00]} 39. Kf3 {[%emt 0:00:01]} Rxe5 {[%emt 0:
00:00]} 40. b4 {[%emt 0:00:10]} Rf5+ {[%emt 0:00:00]} 41. Kg3 {[%emt 0:00:07]}
Rf4 {[%emt 0:00:00]} 42. Rb1 {[%emt 0:00:02]} h4+ {[%emt 0:00:00]} 43. Kh3 {
[%emt 0:00:00]} Kg6 {[%emt 0:00:00]} 44. a5 {[%emt 0:00:06]} Rf3+ {[%emt 0:00:
00]} 45. Kg2 {[%emt 0:00:11]} Ra3 {[%emt 0:00:00]} 0-1

[Event "Moscow-Open 2021_A"]
[Site "Moscow, Russia"]
[Date "2021.02.22"]
[Round "3.6"]
[White "Nesterov, Arseniy"]
[Black "Tsoi, Dmitry"]
[Result "1/2-1/2"]
[ECO "A84"]
[WhiteElo "2476"]
[BlackElo "2334"]
[Annotator "zimin"]
[PlyCount "92"]
[EventDate "2021.??.??"]
[TimeControl "90+30"]
[WhiteClock "0:56:55"]
[BlackClock "0:36:04"]

{[%evp 0,92,34,19,19,-12,-12,-12,75,50,69,23,104,106,138,106,105,73,74,50,39,
43,85,41,58,60,44,29,30,31,30,40,18,30,20,18,73,57,43,29,20,13,23,13,29,46,18,
22,30,29,30,18,15,15,16,18,17,21,35,19,34,19,19,19,40,33,21,25,13,28,30,36,38,
30,38,29,29,39,38,30,38,9,44,42,41,17,39,40,50,38,23,0,-5,-11,-11]} 1. d4 {
[%emt 0:00:00]} d5 {[%emt 0:00:00]} 2. c4 {[%emt 0:00:00]} e6 {[%emt 0:00:00]}
3. Nc3 {[%emt 0:00:00]} f5 {[%emt 0:00:00]} 4. Bf4 {[%emt 0:00:00]} Nf6 {
[%emt 0:00:00]} 5. e3 {[%emt 0:00:00]} c6 {[%emt 0:00:00]} 6. Nf3 {[%emt 0:00:
00]} Bd6 {[%emt 0:00:00]} 7. Bxd6 {[%emt 0:00:00]} Qxd6 {[%emt 0:00:00]} 8. Be2
{[%emt 0:00:00]} O-O {[%emt 0:00:00]} 9. O-O {[%emt 0:00:00]} Nbd7 {[%emt 0:00:
00]} 10. Rb1 {[%emt 0:00:00]} a6 {[%emt 0:00:00]} 11. b4 {[%emt 0:00:00]} Ne4 {
[%emt 0:00:00]} 12. Qc2 {[%emt 0:00:00]} b5 {[%emt 0:00:00]} 13. c5 {[%emt 0:
00:00]} Qe7 {[%emt 0:00:00]} 14. a4 {[%emt 0:00:00]} e5 {[%emt 0:00:00]} 15.
Ra1 {[%emt 0:00:00]} Nxc3 {[%emt 0:00:00]} 16. Qxc3 {[%emt 0:00:00]} e4 {
[%emt 0:00:00]} 17. Nd2 {[%emt 0:00:00]} Rb8 {[%emt 0:00:00]} 18. axb5 {
[%emt 0:00:00]} axb5 {[%emt 0:00:00]} 19. Ra7 {[%emt 0:00:00]} Rb7 {[%emt 0:00:
00]} 20. Rfa1 {[%emt 0:00:00]} Nf6 {[%emt 0:00:00]} 21. Rxb7 {[%emt 0:00:00]}
Qxb7 {[%emt 0:00:00]} 22. Qa3 {[%emt 0:00:00]} g5 {[%emt 0:00:00]} 23. Qa7 {
[%emt 0:00:00]} Qxa7 {[%emt 0:00:00]} 24. Rxa7 {[%emt 0:00:00]} Rf7 {[%emt 0:
00:00]} 25. Ra8 {[%emt 0:00:00]} Rc7 {[%emt 0:00:00]} 26. Nb3 {[%emt 0:00:00]}
Kf7 {[%emt 0:00:00]} 27. Na5 {[%emt 0:00:00]} Bd7 {[%emt 0:00:00]} 28. g3 {
[%emt 0:00:00]} g4 {[%emt 0:00:00]} 29. Kf1 {[%emt 0:00:00]} Ke7 {[%emt 0:00:
00]} 30. Ke1 {[%emt 0:00:00]} Be8 {[%emt 0:00:00]} 31. Ra6 {[%emt 0:00:00]} h5
{[%emt 0:00:00]} 32. Kd2 {[%emt 0:00:00]} Nh7 {[%emt 0:00:00]} 33. Ke1 {
[%emt 0:00:00]} Ng5 {[%emt 0:00:00]} 34. Kf1 {[%emt 0:00:00]} Ne6 {[%emt 0:00:
00]} 35. Kg2 {[%emt 0:00:00]} Ng5 {[%emt 0:00:00]} 36. Nb3 {[%emt 0:00:00]} Rb7
{[%emt 0:00:00]} 37. Nc1 {[%emt 0:00:00]} Ne6 {[%emt 0:00:00]} 38. Nb3 {
[%emt 0:00:00]} Ng5 {[%emt 0:00:00]} 39. Bd1 {[%emt 0:00:00]} Rc7 {[%emt 0:00:
00]} 40. Nc1 {[%emt 0:00:00]} Rb7 {[%emt 0:00:00]} 41. Ne2 {[%emt 0:00:00]} Ne6
{[%emt 0:00:00]} 42. Nf4 {[%emt 0:00:00]} Nc7 {[%emt 0:00:00]} 43. Ra1 {
[%emt 0:00:00]} Rb8 {[%emt 0:00:00]} 44. Ra7 {[%emt 0:00:00]} Kd7 {[%emt 0:00:
00]} 45. Kf1 {[%emt 0:00:00]} Ra8 {[%emt 0:00:00]} 46. Rxa8 {[%emt 0:00:00]}
Nxa8 {[%emt 0:00:00]} 1/2-1/2

[Event "Moscow-Open 2021_A"]
[Site "Moscow, Russia"]
[Date "2021.02.23"]
[Round "4.1"]
[White "Zarubitski, Viachaslau"]
[Black "Iljiushenok, Ilia"]
[Result "1/2-1/2"]
[ECO "B22"]
[WhiteElo "2446"]
[BlackElo "2534"]
[Annotator "zimin"]
[PlyCount "89"]
[EventDate "2021.??.??"]
[TimeControl "90+30"]
[WhiteClock "0:01:56"]
[BlackClock "0:04:17"]

{[%evp 0,62,44,15,66,7,-7,-55,-26,-20,-17,-17,19,-8,29,23,34,-13,38,33,26,-40,
-13,10,37,37,22,21,21,22,13,17,31,30,7,16,27,18,22,13,40,30,37,37,37,30,21,15,
20,21,22,11,12,7,28,24,27,18,40,28,38,31,28,29,38]} 1. e4 {[%emt 0:00:00]} c5 {
[%emt 0:00:00]} 2. c3 {[%emt 0:00:00]} d5 {[%emt 0:00:00]} 3. exd5 {[%emt 0:00:
00]} Qxd5 {[%emt 0:00:00]} 4. d4 {[%emt 0:00:00]} Nf6 {[%emt 0:00:00]} 5. Nf3 {
[%emt 0:00:00]} Bg4 {[%emt 0:00:00]} 6. Be2 {[%emt 0:00:00]} e6 {[%emt 0:00:00]
} 7. h3 {[%emt 0:00:00]} Bh5 {[%emt 0:00:00]} 8. O-O {[%emt 0:00:00]} Nc6 {
[%emt 0:00:00]} 9. Be3 {[%emt 0:00:00]} cxd4 {[%emt 0:00:00]} 10. Nxd4 {
[%emt 0:00:00]} Bxe2 {[%emt 0:00:00]} 11. Qxe2 {[%emt 0:00:00]} Nxd4 {[%emt 0:
00:00]} 12. Bxd4 {[%emt 0:00:00]} Be7 {[%emt 0:00:00]} 13. Rd1 {[%emt 0:00:00]}
Qc6 {[%emt 0:00:00]} 14. Nd2 {[%emt 0:00:00]} O-O {[%emt 0:00:00]} 15. Qc4 {
[%emt 0:00:00]} Rfc8 {[%emt 0:00:00]} 16. Qxc6 {[%emt 0:00:00]} Rxc6 {[%emt 0:
00:00]} 17. Bxf6 {[%emt 0:00:00]} gxf6 {[%emt 0:00:00]} 18. Nb3 {[%emt 0:00:00]
} Rc7 {[%emt 0:00:00]} 19. g4 {[%emt 0:00:00]} Kf8 {[%emt 0:00:00]} 20. Kg2 {
[%emt 0:00:00]} Rd8 {[%emt 0:00:00]} 21. Rxd8+ {[%emt 0:00:00]} Bxd8 {[%emt 0:
00:00]} 22. Rd1 {[%emt 0:00:00]} Ke7 {[%emt 0:00:00]} 23. f4 {[%emt 0:00:00]}
Rc8 {[%emt 0:00:00]} 24. Nd4 {[%emt 0:00:00]} Bb6 {[%emt 0:00:00]} 25. Ne2 {
[%emt 0:00:00]} Rc5 {[%emt 0:00:00]} 26. Ng3 {[%emt 0:00:00]} Ra5 {[%emt 0:00:
00]} 27. a3 {[%emt 0:00:00]} Rc5 {[%emt 0:00:00]} 28. Kf3 {[%emt 0:00:00]} a5 {
[%emt 0:00:00]} 29. h4 {[%emt 0:00:00]} h6 {[%emt 0:00:00]} 30. Rd2 {[%emt 0:
00:00]} Rc6 {[%emt 0:00:00]} 31. Ne4 {[%emt 0:00:00]} a4 {[%emt 0:00:29]} 32.
h5 {[%emt 0:00:28]} Ba7 {[%emt 0:01:47]} 33. Ng3 {[%emt 0:01:24]} Bb6 {[%emt 0:
01:18]} 34. Re2 {[%emt 0:00:21]} Bc5 {[%emt 0:03:12]} 35. Re4 {[%emt 0:02:38]}
b5 {[%emt 0:01:23]} 36. Re2 {[%emt 0:01:36]} Bb6 {[%emt 0:00:53]} 37. Rd2 {
[%emt 0:02:05]} Rc4 {[%emt 0:02:49]} 38. Ne2 {[%emt 0:03:10]} Rc5 {[%emt 0:03:
19]} 39. Ng3 {[%emt 0:00:13]} Rc4 {[%emt 0:00:04]} 40. Rd3 {[%emt 0:03:36]} Rc6
{[%emt 0:00:37]} 41. Ne2 {[%emt 0:01:41]} Rc5 {[%emt 0:00:43]} 42. Nd4 {
[%emt 0:01:29]} Bc7 {[%emt 0:01:16]} 43. Rd2 {[%emt 0:01:05]} Bd6 {[%emt 0:01:
00]} 44. Re2 {[%emt 0:01:17]} Kd7 {[%emt 0:00:23]} 45. Rd2 {[%emt 0:01:01]}
1/2-1/2

[Event "Moscow-Open 2021_A"]
[Site "Moscow, Russia"]
[Date "2021.02.23"]
[Round "4.2"]
[White "Bykov, Egor"]
[Black "Stupak, Kirill"]
[Result "0-1"]
[ECO "A90"]
[WhiteElo "2436"]
[BlackElo "2492"]
[Annotator "zimin"]
[PlyCount "66"]
[EventDate "2021.??.??"]
[TimeControl "90+30"]
[WhiteClock "0:01:33"]
[BlackClock "0:01:34"]

{[%evp 0,53,41,27,70,49,66,67,56,31,37,-10,27,29,69,22,58,35,64,9,75,53,34,54,
41,38,16,29,38,18,34,4,-23,-33,2,3,13,-52,-63,-94,-92,-92,-104,-111,-101,-111,
-104,-116,-107,-131,-154,-154,-163,-137,-103,-170]} 1. d4 {[%emt 0:00:00]} f5 {
[%emt 0:00:00]} 2. g3 {[%emt 0:00:00]} Nf6 {[%emt 0:00:00]} 3. Bg2 {[%emt 0:00:
00]} e6 {[%emt 0:00:00]} 4. c4 {[%emt 0:00:00]} d5 {[%emt 0:00:00]} 5. Nh3 {
[%emt 0:00:00]} c6 {[%emt 0:00:00]} 6. O-O {[%emt 0:00:00]} Bd6 {[%emt 0:00:00]
} 7. Bf4 {[%emt 0:00:00]} O-O {[%emt 0:00:00]} 8. Qc2 {[%emt 0:00:00]} b6 {
[%emt 0:00:00]} 9. Nc3 {[%emt 0:00:00]} Ba6 {[%emt 0:16:21]} 10. cxd5 {[%emt 0:
00:00]} cxd5 {[%emt 0:00:00]} 11. Qa4 {[%emt 0:00:00]} Bb7 {[%emt 0:00:00]} 12.
Rac1 {[%emt 0:00:00]} Nc6 {[%emt 0:00:00]} 13. Bg5 {[%emt 0:00:00]} Na5 {
[%emt 0:00:00]} 14. Nf4 {[%emt 0:00:00]} Qe7 {[%emt 0:00:00]} 15. b4 {[%emt 0:
00:00]} Nc4 {[%emt 0:00:00]} 16. b5 {[%emt 0:00:00]} Bxf4 {[%emt 0:00:00]} 17.
Bxf4 {[%emt 0:00:00]} Rfc8 {[%emt 0:00:00]} 18. Qb3 {[%emt 0:00:00]} Nh5 {
[%emt 0:00:00]} 19. Nb1 {[%emt 0:00:00]} Nxf4 {[%emt 0:00:00]} 20. gxf4 {
[%emt 0:00:00]} a6 {[%emt 0:00:00]} 21. bxa6 {[%emt 0:00:02]} Rxa6 {[%emt 0:00:
00]} 22. Rc2 {[%emt 0:00:26]} Bc6 {[%emt 0:00:00]} 23. Qd3 {[%emt 0:03:43]}
Rca8 {[%emt 0:00:00]} 24. Nd2 {[%emt 0:07:33]} Ra3 {[%emt 0:00:00]} 25. Rc3 {
[%emt 0:00:01]} b5 {[%emt 0:00:00]} 26. Rxa3 {[%emt 0:02:05]} Qxa3 {[%emt 0:00:
00]} 27. Nxc4 {[%emt 0:00:37]} bxc4 {[%emt 0:00:00]} 28. Qb1 {[%emt 0:00:14]}
Qxa2 {[%emt 0:00:00]} 29. Qb6 {[%emt 0:00:08]} Rc8 {[%emt 0:00:00]} 30. e3 {
[%emt 0:00:43]} c3 {[%emt 0:00:00]} 31. Rc1 {[%emt 0:00:14]} Qb2 {[%emt 0:00:
02]} 32. Qxb2 {[%emt 0:00:36]} cxb2 {[%emt 0:00:01]} 33. Rb1 {[%emt 0:00:05]}
Bb5 {[%emt 0:00:02]} 0-1

[Event "Moscow-Open 2021_A"]
[Site "Moscow, Russia"]
[Date "2021.02.23"]
[Round "4.3"]
[White "Faizrakhmanov, Ramil"]
[Black "Kukhmazov, Arsen"]
[Result "0-1"]
[ECO "D24"]
[WhiteElo "2476"]
[BlackElo "2442"]
[Annotator "zimin"]
[PlyCount "156"]
[EventDate "2021.??.??"]
[TimeControl "90+30"]
[WhiteClock "0:01:25"]
[BlackClock "0:04:17"]

{[%evp 0,44,27,27,33,-11,-14,3,-4,-1,53,36,60,2,36,-9,-13,-6,39,39,34,17,17,
-11,18,0,-3,10,10,0,-9,-91,7,7,7,-64,-69,-66,25,-42,87,23,81,39,156,144,74]} 1.
d4 {[%emt 0:00:00]} Nf6 {[%emt 0:00:00]} 2. c4 {[%emt 0:00:00]} e6 {[%emt 0:00:
00]} 3. Nf3 {[%emt 0:00:00]} d5 {[%emt 0:00:00]} 4. Nc3 {[%emt 0:00:00]} dxc4 {
[%emt 0:00:00]} 5. e4 {[%emt 0:00:00]} Bb4 {[%emt 0:00:00]} 6. Bxc4 {[%emt 0:
00:00]} Nxe4 {[%emt 0:00:00]} 7. O-O {[%emt 0:00:00]} Nxc3 {[%emt 0:00:00]} 8.
bxc3 {[%emt 0:00:00]} Bd6 {[%emt 0:00:00]} 9. Qe2 {[%emt 0:00:00]} O-O {
[%emt 0:00:00]} 10. Rd1 {[%emt 0:00:00]} Nd7 {[%emt 0:00:00]} 11. Ne5 {[%emt 0:
00:00]} Qe7 {[%emt 0:00:00]} 12. Rb1 {[%emt 0:00:00]} Nxe5 {[%emt 0:00:00]} 13.
dxe5 {[%emt 0:00:00]} Bc5 {[%emt 0:00:00]} 14. Rd3 {[%emt 0:00:00]} Bd7 {
[%emt 0:00:00]} 15. h4 {[%emt 0:00:00]} f5 {[%emt 0:00:00]} 16. Bg5 {[%emt 0:
00:00]} Qf7 {[%emt 0:00:00]} 17. h5 {[%emt 0:00:00]} h6 {[%emt 0:00:00]} 18.
Bf4 {[%emt 0:00:00]} Kh7 {[%emt 0:00:00]} 19. Rg3 {[%emt 0:00:00]} Be8 {
[%emt 0:00:00]} 20. Rxb7 {[%emt 0:00:00]} Bb6 {[%emt 0:00:00]} 21. Rg6 {
[%emt 0:00:00]} Qd7 {[%emt 0:00:00]} 22. Rxe6 {[%emt 0:00:00]} Qc8 {[%emt 0:00:
00]} 23. Qf3 {[%emt 0:00:00]} Bf7 {[%emt 0:00:00]} 24. Rexb6 {[%emt 0:00:00]}
axb6 {[%emt 0:00:00]} 25. e6 Bxe6 {[%emt 0:00:00]} 26. Rxb6 {[%emt 0:00:00]}
cxb6 {[%emt 0:00:00]} 27. Bd6 Qc7 {[%emt 0:00:00]} 28. Bxc7 {[%emt 0:00:00]}
Bxc4 {[%emt 0:00:00]} 29. Bd6 {[%emt 0:00:00]} Rfe8 {[%emt 0:00:00]} 30. Qxf5+
{[%emt 0:00:00]} Kg8 {[%emt 0:00:00]} 31. Be5 {[%emt 0:01:41]} Bxa2 {[%emt 0:
00:00]} 32. f4 {[%emt 0:01:47]} Ra7 {[%emt 0:01:02]} 33. Qg6 {[%emt 0:02:16]}
Re6 {[%emt 0:00:26]} 34. Qd3 {[%emt 0:00:34]} Re8 {[%emt 0:07:25]} 35. Qd4 {
[%emt 0:02:47]} Rae7 {[%emt 0:05:47]} 36. Qxb6 {[%emt 0:02:30]} Bf7 {[%emt 0:
00:02]} 37. Qc5 {[%emt 0:01:55]} Rd7 {[%emt 0:00:50]} 38. Kh2 {[%emt 0:01:18]}
Red8 {[%emt 0:02:14]} 39. Qb6 {[%emt 0:03:41]} Rd2 {[%emt 0:01:10]} 40. Bd4 {
[%emt 0:01:43]} Re8 {[%emt 0:00:27]} 41. Kh3 {[%emt 0:01:13]} Bxh5 {[%emt 0:01:
44]} 42. f5 {[%emt 0:00:25]} Ree2 {[%emt 0:00:35]} 43. f6 {[%emt 0:00:38]} Rxg2
{[%emt 0:00:34]} 44. fxg7 {[%emt 0:00:17]} Rh2+ {[%emt 0:00:23]} 45. Kg3 {
[%emt 0:00:12]} Rdg2+ {[%emt 0:00:44]} 46. Kf4 {[%emt 0:00:01]} Rh4+ {[%emt 0:
00:35]} 47. Kf5 {[%emt 0:01:30]} Rg5+ {[%emt 0:00:22]} 48. Ke6 {[%emt 0:00:07]}
Re4+ {[%emt 0:00:32]} 49. Kd7 {[%emt 0:00:11]} Bg4+ {[%emt 0:00:33]} 50. Kc7 {
[%emt 0:00:52]} Re7+ {[%emt 0:00:19]} 51. Kd8 {[%emt 0:00:21]} Rd7+ {[%emt 0:
00:33]} 52. Ke8 {[%emt 0:00:04]} Rgd5 {[%emt 0:00:09]} 53. Qxh6 {[%emt 0:01:24]
} Rd8+ {[%emt 0:00:02]} 54. Ke7 {[%emt 0:00:06]} R5d7+ {[%emt 0:00:04]} 55. Kf6
{[%emt 0:00:22]} Rd6+ {[%emt 0:00:01]} 56. Kg5 {[%emt 0:00:16]} Rxh6 {[%emt 0:
00:02]} 57. Kxh6 {[%emt 0:00:04]} Rd5 {[%emt 0:00:41]} 58. Kg6 {[%emt 0:00:19]}
Bh5+ {[%emt 0:00:12]} 59. Kf6 {[%emt 0:00:10]} Bf7 {[%emt 0:00:28]} 60. Ke7 {
[%emt 0:00:16]} Rf5 {[%emt 0:00:23]} 61. Bf6 {[%emt 0:00:17]} Bc4 {[%emt 0:00:
12]} 62. Bd4 {[%emt 0:00:07]} Kh7 {[%emt 0:00:09]} 63. Bf6 {[%emt 0:00:55]} Kg6
{[%emt 0:00:18]} 64. Bd4 {[%emt 0:00:06]} Ra5 {[%emt 0:00:47]} 65. Kf8 {
[%emt 0:00:26]} Kf5 {[%emt 0:00:38]} 66. Ke7 {[%emt 0:00:14]} Ra6 {[%emt 0:00:
17]} 67. Kf8 {[%emt 0:00:15]} Ke4 {[%emt 0:00:27]} 68. Ke7 {[%emt 0:00:15]} Bg8
{[%emt 0:00:08]} 69. Kf8 {[%emt 0:00:23]} Ra8+ {[%emt 0:00:08]} 70. Ke7 {
[%emt 0:00:09]} Kd5 {[%emt 0:00:14]} 71. Be3 {[%emt 0:00:31]} Rc8 {[%emt 0:00:
24]} 72. Bd4 {[%emt 0:00:09]} Rb8 {[%emt 0:00:17]} 73. Be3 {[%emt 0:00:33]}
Rb7+ {[%emt 0:00:44]} 74. Kf8 {[%emt 0:00:03]} Be6 {[%emt 0:00:46]} 75. Bh6 {
[%emt 0:01:55]} Ra7 {[%emt 0:01:26]} 76. Ke8 {[%emt 0:02:11]} Kc4 {[%emt 0:00:
10]} 77. Kf8 {[%emt 0:01:11]} Kxc3 {[%emt 0:00:33]} 78. Bg5 {[%emt 0:00:25]}
Kc4 {[%emt 0:00:16]} 0-1